[Event "New York Spring IM-C 2022"]
[Site "New York"]
[Date "2022.04.17"]
[Round "6.5"]
[White "Chasin, Nico"]
[Black "Dolgitser, Konstantin"]
[Result "1-0"]
[ECO "A12"]
[WhiteElo "2270"]
[BlackElo "2199"]
[Annotator "TA"]
[PlyCount "143"]
[EventDate "2022.04.14"]
[EventType "tourn"]
[EventCountry "USA"]
[SourceTitle "playchess.com"]
[Source "ChessBase"]
[SourceQuality "1"]
[TimeControl "5400+30"]

{[%evp 13,143,0,6,-31,39,14,19,24,24,20,22,4,11,18,16,19,43,10,38,20,19,14,29,43,56,56,58,70,66,21,21,0,26,19,23,12,16,4,22,8,8,6,16,6,13,9,9,15,10,6,16,12,16,24,15,0,10,11,33,42,29,25,210,216,214,214,200,221,208,215,213,223,225,210,233,214,215,215,337,330,326,291,291,254,291,175,291,291,795,598,545,394,739,538,800,784,29957,29958,29957,29958,6528,12489,8601,4205,3509,3383,1811,904,2118,1749,4134,5089,29963,29967,29977,29979,29979,29975,29974,29971,11726,5081,29980,29981,29981,29982,29984,29985,29985,29986,29986,29984]} 1. c4 {[%emt 0:00:59]} c6 {[%emt 0:00:11]} 2. Nf3 {[%emt 0:00:32]} Nf6 {[%emt 0:00:20]} 3. e3 {[%emt 0:00:29]} d5 {[%emt 0:00:36]} 4. b3 {[%emt 0:00:57]} Bf5 {[%emt 0:00:28]} 5. Bb2 {[%emt 0:00:18]} e6 {[%emt 0:00:22]} 6. Be2 {[%emt 0:04:47]} h6 {[%emt 0:01:56]} 7. O-O {[%emt 0:00:12]} Be7 {[%emt 0:00:18]} 8. cxd5 {[%emt 0:04:28] [#] A12: English Opening: 1...c6 with b3 by White.} Qxd5 $146 {[%emt 0:11:56]} ({Better is} 8... exd5 $15 9. Bxf6 Bxf6) ({Predecessor:} 8... exd5 9. d3 O-O 10. a3 Nbd7 11. Nbd2 a5 12. Qc2 Re8 13. Rfe1 Bg6 14. Bf1 Bd6 15. Bc3 Ng4 {1-0 (38) Spata,G (2290)-Mollo,J (2073) Tornelo INT 2021}) 9. Nc3 {[%emt 0:01:03]} Qd8 {[%emt 0:00:16]} 10. d4 {[%emt 0:05:58] The position is equal.} O-O {[%emt 0:00:21]} 11. Rc1 {[%emt 0:00:27]} Nbd7 {[%emt 0:02:16]} 12. Bd3 {[%emt 0:00:46]} Bxd3 {[%emt 0:00:10]} 13. Qxd3 {[%emt 0:00:04]} Re8 {[%emt 0:13:24]} 14. Rfd1 {[%emt 0:01:16]} Nd5 {[%emt 0:00:34]} 15. Ne2 {[%emt 0:06:08][%cal Bc3e2,Be2f4,Bf4d3][%mdl 32]} Qc7 {[%emt 0:07:30]} 16. g3 {[%emt 0:01:41]} Rad8 {[%emt 0:02:13]} 17. e4 {[%emt 0:03:11]} Nb4 {[%emt 0:00:10][%csl LRa2,LRd3]} 18. Qb1 {[%emt 0:01:47]} Qb8 {[%emt 0:01:04]} 19. a3 {[%emt 0:05:27]} Na6 {[%emt 0:00:08]} 20. Nf4 {[%emt 0:00:07]} Bd6 {[%emt 0:05:03]} 21. Nd3 {[%emt 0:03:15]} c5 $1 {[%emt 0:05:40]} 22. Qa1 {[%emt 0:05:06]} cxd4 {[%emt 0:07:28]} 23. Bxd4 {[%emt 0:00:26]} Bf8 {[%emt 0:00:10]} 24. b4 {[%emt 0:00:32]} b6 $1 {[%emt 0:01:10]} 25. Qb2 {[%emt 0:01:14]} Qb7 {[%emt 0:01:43]} 26. Qe2 {[%emt 0:00:02]} Rc8 {[%emt 0:02:22]} 27. Bb2 {[%emt 0:00:38]} Nab8 {[%emt 0:02:52][%cal Ba6b8,Bb8d7,Bd7f6][%mdl 32]} 28. Nfe5 {[%emt 0:03:06]} Nxe5 {[%emt 0:00:20]} 29. Nxe5 {[%emt 0:00:10]} Rxc1 {[%emt 0:06:57]} 30. Rxc1 {[%emt 0:02:37]} Nd7 {[%emt 0:00:05]} 31. Qb5 {[%emt 0:00:37]} Nf6 {[%emt 0:00:06] [#]} 32. Ng4 $1 {[%emt 0:00:30]} Nd7 {[%emt 0:03:57]} 33. Rd1 {[%emt 0:06:48][%cal Bc1d1,Bd1d8,Bd8b8][%mdl 32]} Re7 {[%emt 0:00:24][%cal Ob7e4]} 34. Qd3 {[%emt 0:00:58]} Nb8 {[%emt 0:03:34]} 35. Qc3 {[%emt 0:06:18]} f6 {[%emt 0:04:27] [#]} (35... Qxe4 {feels hotter.} 36. Nxh6+ Kh7 37. f3 Qe2) 36. Nxf6+ $1 {[%emt 0:04:06]} gxf6 {[%emt 0:00:16]} 37. Qxf6 {[%emt 0:00:05]} Qxe4 $2 {[%emt 0:02:32] This move loses the game for Black.} (37... Bg7 $11 38. Qg6 Qc8) 38. Rd8 $1 $40 {[%emt 0:02:42][%csl LRb8,LRe7,LRf8,LRh6][%mdl 128] White attacks with force.} Qe1+ {[%emt 0:07:44]} 39. Kg2 {[%emt 0:00:05] The board is on fire.} Qe4+ {[%emt 0:00:09]} 40. Kh3 {[%emt 0:05:38]} Qf5+ {[%emt 0:00:07]} 41. Qxf5 {[%emt 0:00:05]} exf5 {[%emt 0:00:02]} 42. Rxb8 {[%emt 0:00:02][%mdl 4096] Endgame KRB-KRB} Kf7 {[%emt 0:00:21]} 43. Bd4 {[%emt 0:00:14]} Bg7 {[%emt 0:00:40]} 44. Be3 {[%emt 0:00:01]} Bb2 {[%emt 0:01:05] [#]} 45. a4 {[%emt 0:00:17]} (45. Bxh6 $6 Bxa3 46. Kg2 Kg6 $16) 45... Kg6 {[%emt 0:00:24]} (45... Bc3 {was worth a try.} 46. a5 (46. Bxh6 Kg6 $16) 46... bxa5) 46. a5 {[%emt 0:01:08]} Be5 {[%emt 0:01:53]} 47. Rg8+ {[%emt 0:02:16]} Kf7 {[%emt 0:00:21]} 48. Ra8 {[%emt 0:02:18]} ({Much less strong is} 48. axb6 axb6 49. Rc8 Re6 $18) 48... Bc3 {[%emt 0:00:29]} 49. Rb8 {[%emt 0:07:19]} ({But not} 49. Bxh6 $6 bxa5 50. bxa5 Bxa5 $16) 49... Bxb4 {[%emt 0:01:28]} (49... bxa5 {might work better.} 50. bxa5 a6 51. Bxh6 Bxa5) 50. axb6 {[%emt 0:00:17]} a5 {[%emt 0:01:01]} (50... axb6 51. Rxb6 Bc3 52. Rxh6 Bg7) 51. Bxh6 {[%emt 0:03:12] Black must now prevent Bf8.} Ke6 {[%emt 0:02:42]} 52. Bf4 {[%emt 0:01:15] b7 is the strong threat.} a4 $2 {[%emt 0:00:01]} (52... Kd5 53. Kg2 (53. b7 Kc6 $16) 53... Kc6) 53. Ra8 {[%emt 0:00:58] And now Ra7 would win.} a3 {[%emt 0:00:23]} 54. Ra7 {[%emt 0:00:41] Against Rb7} Bc5 {[%emt 0:00:38]} 55. Rxe7+ {[%emt 0:00:34]} Bxe7 {[%emt 0:01:10] KB-KB} 56. b7 {[%emt 0:00:07]} a2 {[%emt 0:00:04] [#]} 57. b8=Q {[%emt 0:00:24]} (57. Be5 $142 $1 {[%mdl 512]} Bd6 58. Bxd6) 57... a1=Q {[%emt 0:00:10]} 58. Qc8+ {[%emt 0:00:06]} (58. Qg8+ $142 Kd7 59. Qd5+ Ke8 60. Qb5+ Kd8 61. Qd5+ Ke8 62. Qxf5) 58... Kf7 {[%emt 0:01:06]} 59. Qxf5+ {[%emt 0:00:13]} Ke8 {[%emt 0:00:11]} 60. Qb5+ {[%emt 0:00:25]} Kf7 {[%emt 0:00:07]} 61. Qd5+ {[%emt 0:00:07]} Ke8 {[%emt 0:00:11]} 62. Kg2 {[%emt 0:00:34]} Qc3 {[%emt 0:00:19]} 63. h4 {[%emt 0:00:06][%cal Bh2h4,Bh4h5][%mdl 32]} Qg7 {[%emt 0:01:18]} 64. Qe6 {[%emt 0:00:09]} Kd8 {[%emt 0:00:52]} 65. h5 {[%emt 0:00:07]} Bf6 {[%emt 0:01:01]} 66. Qd6+ {[%emt 0:00:16]} Ke8 {[%emt 0:00:09]} 67. Qb8+ {[%emt 0:00:04]} Bd8 {[%emt 0:00:37]} 68. Qb5+ {[%emt 0:00:13] White mates.} Kf8 {[%emt 0:00:09]} 69. Bd6+ {[%emt 0:00:15]} Kg8 {[%emt 0:00:09]} 70. Qe8+ {[%emt 0:00:03]} Kh7 {[%emt 0:00:14]} 71. Qxd8 {[%emt 0:00:11]} Qb7+ {[%emt 0:00:27]} 72. Kh2 {[%emt 0:00:08] Weighted Error Value: White=0.27 (precise) /Black=0.33} 1-0

[Event "New York Spring IM-C 2022"]
[Site "New York"]
[Date "2022.04.18"]
[Round "7.1"]
[White "Dolgitser, Konstantin"]
[Black "Lee, Justin"]
[Result "1/2-1/2"]
[ECO "D45"]
[WhiteElo "2199"]
[BlackElo "2104"]
[Annotator "TA"]
[PlyCount "40"]
[EventDate "2022.04.14"]
[EventType "tourn"]
[EventCountry "USA"]
[SourceTitle "playchess.com"]
[Source "ChessBase"]
[SourceQuality "1"]
[TimeControl "5400+30"]

{[%evp 23,27,0,2,-13,-2,-28]} 1. d4 {[%emt 0:00:02]} d5 {[%emt 0:00:05]} 2. c4 {[%emt 0:00:08]} c6 {[%emt 0:00:06]} 3. Nc3 {[%emt 0:00:20]} Nf6 {[%emt 0:00:09]} 4. e3 {[%emt 0:00:31]} e6 {[%emt 0:00:12]} 5. Nf3 {[%emt 0:00:16]} Nbd7 {[%emt 0:00:06]} 6. Be2 {[%emt 0:00:25]} Bd6 {[%emt 0:00:13]} 7. b3 {[%emt 0:00:23]} O-O {[%emt 0:00:13]} 8. O-O {[%emt 0:00:30]} Qe7 {[%emt 0:00:25]} 9. Bb2 {[%emt 0:00:46]} b6 {[%emt 0:00:26]} 10. Qc2 {[%emt 0:03:50]} Bb7 {[%emt 0:00:12]} 11. Rad1 {[%emt 0:01:39]} Rad8 {[%emt 0:02:08]} 12. Rfe1 {[%emt 0:00:57]} Rfe8 {[%emt 0:09:16]} 13. Bd3 {[%emt 0:03:16] D45: Semi-Slav: 5 e3.} e5 {[%emt 0:11:56]} 14. e4 {[%emt 0:07:44] [#] Not much happened in this game.} {Predecessor:} dxc4 $146 15. Bxc4 b5 16. Bf1 a6 17. g3 g6 18. Bg2 exd4 19. Nxd4 b4 20. Na4 c5 {½-½ (34) Zhao,X (2510)-Harika,D (2526) Chengdu 2016} 1/2-1/2

[Event "New York Spring IM-C 2022"]
[Site "New York"]
[Date "2022.04.18"]
[Round "7.2"]
[White "Antova, Gabriela"]
[Black "Chasin, Nico"]
[Result "0-1"]
[ECO "D39"]
[WhiteElo "2304"]
[BlackElo "2270"]
[Annotator "TA"]
[PlyCount "52"]
[EventDate "2022.04.14"]
[EventType "tourn"]
[EventCountry "USA"]
[SourceTitle "playchess.com"]
[Source "ChessBase"]
[SourceQuality "1"]
[TimeControl "5400+30"]

{[%evp 15,52,0,22,28,12,7,39,25,6,16,36,41,25,0,21,0,0,-10,0,0,0,-72,-61,-62,-64,-106,-108,-95,-81,-177,-152,-637,-616,-625,-612,-826,-792,-704,-704]} 1. d4 {[%emt 0:00:03]} Nf6 {[%emt 0:03:23]} 2. c4 {[%emt 0:00:17]} e6 {[%emt 0:00:28]} 3. Nf3 {[%emt 0:00:12]} d5 {[%emt 0:00:09]} 4. Nc3 {[%emt 0:00:10]} Bb4 {[%emt 0:00:14]} 5. Bg5 {[%emt 0:00:38]} dxc4 {[%emt 0:00:15]} 6. e4 {[%emt 0:09:07]} c5 {[%emt 0:01:10]} 7. Bxc4 {[%emt 0:03:32]} cxd4 {[%emt 0:04:36]} 8. Nxd4 {[%emt 0:00:30]} Qa5 {[%emt 0:03:18]} (8... Bxc3+ $5 9. bxc3 Nbd7 $14) 9. Bb5+ {[%emt 0:07:27] D39: Queen's Gambit Declined: Ragozin Defence with 5 Bg5 dxc4.} Bd7 {[%emt 0:00:57]} 10. Bxf6 {[%emt 0:18:11]} gxf6 {[%emt 0:13:13]} 11. O-O {[%emt 0:55:53] White is slightly better.} Bxc3 {[%emt 0:08:03]} 12. Bxd7+ {[%emt 0:00:00]} Nxd7 {[%emt 0:00:10][%cal Bb8d7,Bd7c5,Bc5e4][%mdl 32]} 13. bxc3 {[%emt 0:00:00]} a6 {[%emt 0:04:03]} 14. Qd2 {[%emt 0:00:00]} (14. Rb1 $5 {[%cal Rb1b7]} b6 15. Qd2 $14) 14... Rc8 {[%emt 0:01:15]} 15. Rac1 {[%emt 0:00:00] [#]} (15. Rfd1 $5 {[%cal Rd4e6]} Qc7 16. Qe3 $11) 15... Ke7 $146 {[%emt 0:02:59]} ({Predecessor:} 15... Rg8 16. f4 Nc5 17. Rfe1 Rd8 18. Qe2 Qc7 19. Rf1 e5 20. fxe5 fxe5 21. Qh5 Nd3 {0-1 (43) Zoebisch,H (2145)-Wittmann,W (2274) Vienna 2009}) 16. f4 {[%emt 0:00:00][%cal Oe4e5]} Rhg8 {[%emt 0:04:20]} 17. Rf3 {[%emt 0:00:00]} Nc5 {[%emt 0:02:29]} 18. Qe1 {[%emt 0:00:00]} (18. Re1 $11 {remains equal.}) 18... Qxa2 $17 {[%emt 0:00:53][%csl Gg8][%cal Ra2g2]} 19. Rc2 {[%emt 0:00:00]} Qc4 {[%emt 0:05:05]} 20. e5 {[%emt 0:00:00] [#]} f5 {[%emt 0:03:49]} 21. Qh4+ {[%emt 0:00:00]} Kf8 {[%emt 0:00:49]} 22. Rd2 {[%emt 0:00:00]} (22. Qxh7 $17 {was called for.} Nb3 23. Nxb3 Qxb3 24. Qh6+ Ke8 25. Qh7) 22... Ne4 $1 $19 {[%emt 0:07:42][%csl LRc3,LRd2]} 23. Nxf5 $2 {[%emt 0:00:00] Loses the game.} (23. Rdd3 $17) 23... Qc5+ {[%emt 0:01:32] Black is clearly winning.} ({Worse is} 23... exf5 24. Rd8+ Rxd8 25. Qxd8+ Kg7 26. Rg3+ Nxg3 27. Qf6+ Kf8 28. Qd8+ Kg7 29. Qf6+ Kf8 30. Qd8+ Kg7 $11) 24. Kh1 {[%emt 0:00:00] [#] Threatening mate with Rd8+.} exf5 {[%emt 0:01:51]} ({And not} 24... Nxd2 25. Rd3 exf5 26. Rd8+ Rxd8 27. Qxd8+ Kg7 28. Qf6+ Kf8 29. Qd8+ Kg7 30. Qf6+ Kf8 31. Qd8+ $11) 25. Rd8+ {[%emt 0:00:00]} Rxd8 {[%emt 0:00:01]} 26. Qxd8+ {[%emt 0:00:00]} Kg7 {[%emt 0:00:01] Weighted Error Value: White=0.75/Black=0.03 (flawless)} 0-1

[Event "New York Spring IM-C 2022"]
[Site "New York"]
[Date "2022.04.18"]
[Round "7.3"]
[White "Jakovljevic, Vlado"]
[Black "Rozman, Levy"]
[Result "1/2-1/2"]
[ECO "D25"]
[WhiteElo "2352"]
[BlackElo "2334"]
[Annotator "TA"]
[PlyCount "141"]
[EventDate "2022.04.14"]
[EventType "tourn"]
[EventCountry "USA"]
[SourceTitle "playchess.com"]
[Source "ChessBase"]
[SourceQuality "1"]
[TimeControl "5400+30"]

{[%evp 12,141,32,22,37,35,29,33,24,31,34,25,37,18,71,72,143,151,144,147,212,213,208,219,212,230,229,228,208,204,204,162,231,227,229,225,225,164,157,147,154,138,138,129,173,168,171,164,168,161,178,146,168,167,167,160,156,155,162,149,149,145,147,148,145,145,150,148,155,147,154,122,125,133,131,122,160,148,153,133,132,111,110,100,100,84,94,53,99,85,97,74,102,72,93,66,119,97,90,90,191,191,735,715,694,673,2589,124,101,8,8,0,0,0,0,0,0,0,0,0,8,8,8,0,0,0,0,0,0,0,0,0]} 1. Nf3 {[%emt 0:00:03]} d5 {[%emt 0:04:32]} 2. d4 {[%emt 0:00:16]} Nf6 {[%emt 0:00:20]} 3. c4 {[%emt 0:00:06]} dxc4 {[%emt 0:00:31]} 4. e3 {[%emt 0:00:25]} Bg4 {[%emt 0:00:37]} 5. Bxc4 {[%emt 0:00:32]} e6 {[%emt 0:00:06]} 6. h3 {[%emt 0:00:59]} Bh5 {[%emt 0:00:07]} 7. Nc3 {[%emt 0:00:55]} Nc6 {[%emt 0:00:55] D25: Queen's Gambit Accepted: 4 e3: sidelines and 4...Bg4.} 8. O-O {[%emt 0:01:11]} Bd6 {[%emt 0:00:21]} 9. Re1 {[%emt 0:01:01]} O-O {[%emt 0:00:34] White is slightly better.} 10. g4 {[%emt 0:01:13]} Bg6 {[%emt 0:00:53]} 11. e4 {[%emt 0:00:43] Black must now prevent e5.} e5 {[%emt 0:04:18]} 12. dxe5 {[%emt 0:01:09] [#]} (12. d5 {seems wilder.} Na5 13. Bf1 c6 14. Bg5) 12... Bxe5 $146 {[%emt 0:08:37]} (12... Nxe5 $11 13. Nxe5 Bxe5) ({Predecessor:} 12... Nxe5 13. Nxe5 Bxe5 14. Qxd8 Rfxd8 15. f3 c6 16. Be3 Nd7 17. a4 h6 18. a5 b5 {½-½ (26) Boulanger,M (2211)-Stubbs,M (2237) ICCF email 2018}) 13. Nxe5 $16 {[%emt 0:46:53]} Qxd1 {[%emt 0:06:08]} (13... Nxe5 $142 14. Qe2 Qe7) 14. Rxd1 {[%emt 0:10:16]} Nxe5 {[%emt 0:00:30]} 15. Be2 {[%emt 0:00:05] f4 is the strong threat. A strong pair of Bishops.} ({Stronger than} 15. Bd5 c6 16. Bb3 Nxe4 $11) 15... Nxe4 {[%emt 0:05:01]} (15... Bxe4 $2 16. g5) (15... Nc6 $16 {was called for.}) 16. f4 $1 $18 {[%emt 0:00:31]} Nc6 {[%emt 0:07:00]} 17. f5 {[%emt 0:00:24]} Ng3 {[%emt 0:00:27]} 18. fxg6 {[%emt 0:01:31]} Nxe2+ {[%emt 0:00:20]} 19. Nxe2 {[%emt 0:00:06]} fxg6 {[%emt 0:00:07]} 20. Kg2 {[%emt 0:01:17]} Rae8 {[%emt 0:00:25]} 21. Ng3 {[%emt 0:01:02]} h5 {[%emt 0:01:03]} (21... Ne5 $142 22. Be3 b6) 22. gxh5 {[%emt 0:01:42]} gxh5 {[%emt 0:00:05]} 23. h4 {[%emt 0:06:07]} ({Much less strong is} 23. Nxh5 $6 Re2+ 24. Kg3 Ne7) 23... Ne5 {[%emt 0:01:04]} 24. Bg5 {[%emt 0:01:02]} Nf3 {[%emt 0:02:08]} 25. Rf1 {[%emt 0:00:43]} Nxg5 {[%emt 0:00:41]} 26. Rxf8+ {[%emt 0:00:59]} Rxf8 {[%emt 0:00:41]} 27. hxg5 $16 {[%emt 0:00:07][%mdl 4096] Endgame KRN-KR} Rf4 {[%emt 0:00:05]} 28. Nxh5 {[%emt 0:03:36]} Rg4+ {[%emt 0:00:07]} 29. Kf3 {[%emt 0:00:06]} Rxg5 {[%emt 0:00:05]} 30. Nf4 {[%emt 0:00:06]} Rc5 {[%emt 0:00:46]} 31. Rg1 {[%emt 0:00:47]} Ra5 {[%emt 0:01:38]} 32. a3 {[%emt 0:00:42]} Kf7 {[%emt 0:00:06]} 33. Nd3 {[%emt 0:01:16]} Rh5 {[%emt 0:03:02]} 34. Rc1 {[%emt 0:01:28]} c6 {[%emt 0:00:29]} 35. Ke4 {[%emt 0:09:26]} Rh4+ {[%emt 0:01:10]} 36. Ke5 {[%emt 0:00:19]} Rh5+ {[%emt 0:00:13]} 37. Kf4 {[%emt 0:00:32]} Rh4+ {[%emt 0:00:30]} 38. Kg3 {[%emt 0:00:12]} Rd4 {[%emt 0:01:27]} 39. Rc3 {[%emt 0:00:39]} Ke7 {[%emt 0:00:41]} 40. Kf3 {[%emt 0:02:02]} Kd6 {[%emt 0:03:09]} 41. Ke2 {[%emt 0:02:48]} Rg4 {[%emt 0:07:32]} 42. Nf2 {[%emt 0:00:25]} Rg1 {[%emt 0:00:49]} 43. Rd3+ {[%emt 0:01:56]} Ke6 {[%emt 0:04:15]} 44. Rd8 {[%emt 0:00:13]} Rg5 {[%emt 0:01:54]} 45. Nd3 {[%emt 0:01:24]} a5 {[%emt 0:05:02]} 46. Rb8 {[%emt 0:00:28]} b5 {[%emt 0:00:09]} 47. Ra8 {[%emt 0:01:16]} a4 {[%emt 0:00:14]} 48. Rc8 {[%emt 0:01:04]} Kd6 {[%emt 0:01:07]} 49. Rb8 {[%emt 0:00:21]} Kc7 {[%emt 0:00:35]} (49... Kd5 $14) 50. Rf8 {[%emt 0:00:06]} Kd6 {[%emt 0:00:24]} 51. Nf2 {[%emt 0:00:28] Threatens to win with Ne4+.} Kc7 {[%emt 0:00:48]} 52. Rf3 {[%emt 0:00:27]} Rg1 {[%emt 0:00:52]} 53. Rf4 {[%emt 0:00:25]} Rg6 {[%emt 0:01:22]} (53... c5 $14) 54. Ke3 {[%emt 0:01:53]} Rg3+ {[%emt 0:02:23]} 55. Kd4 {[%emt 0:00:22]} Kb6 {[%emt 0:00:05] [#]} (55... Rg2 $16 56. Nd3 Kb6) 56. Rg4 $1 $18 {[%emt 0:01:04]} c5+ $2 {[%emt 0:07:55]} (56... Rf3 57. Nd3 Rf6 58. Rxg7 Rd6+ 59. Ke4 Rh6) 57. Kd5 {[%emt 0:00:34]} Rb3 {[%emt 0:00:15] [#]} 58. Rg6+ $1 {[%emt 0:00:36]} Ka5 {[%emt 0:00:01]} 59. Kxc5 {[%emt 0:00:37]} (59. Ne4 $18 Rh3 60. Rxg7) 59... Rxb2 $16 {[%emt 0:00:23] aiming for ...Rc2+.} 60. Nd3 {[%emt 0:00:14]} (60. Ne4 $16 {And now Kc6 would win.} Rc2+ 61. Kd4) 60... Rb3 $11 {[%emt 0:01:10] The position is equal.} 61. Nb4 {[%emt 0:01:13][%csl Gb4][%cal Rg6a6]} Rc3+ {[%emt 0:00:08]} 62. Kd4 {[%emt 0:00:30][%csl Gb4][%cal Rg6a6]} Rxa3 {[%emt 0:00:13]} 63. Nc6+ {[%emt 0:00:07]} Kb6 {[%emt 0:00:30]} 64. Ne5+ {[%emt 0:00:13]} Ka5 {[%emt 0:01:06]} 65. Rxg7 {[%emt 0:00:37]} Ra2 {[%emt 0:01:01]} 66. Nc6+ {[%emt 0:00:27]} Kb6 {[%emt 0:00:06]} 67. Rg6 {[%emt 0:00:07] Intending Nb4+ and mate.} Rh2 {[%emt 0:01:00]} 68. Nb4+ {[%emt 0:00:29]} Ka5 {[%emt 0:00:42]} 69. Nc6+ {[%emt 0:00:18]} (69. Kc5 $5 {[%cal Rg6a6]} Rh5+ 70. Nd5 $11) 69... Kb6 {[%emt 0:00:05]} 70. Nb4+ {[%emt 0:00:18]} Ka5 {[%emt 0:00:08]} 71. Nc6+ {[%emt 0:00:19] Black escapes into a draw.  Weighted Error Value: White=0.24 (precise) /Black=0.17 (very precise)} 1/2-1/2

[Event "New York Spring IM-C 2022"]
[Site "New York"]
[Date "2022.04.18"]
[Round "7.4"]
[White "Umayan, Vincent"]
[Black "Berczes, David"]
[Result "0-1"]
[ECO "E11"]
[WhiteElo "2043"]
[BlackElo "2452"]
[Annotator "TA"]
[PlyCount "66"]
[EventDate "2022.04.14"]
[EventType "tourn"]
[EventCountry "USA"]
[SourceTitle "playchess.com"]
[Source "ChessBase"]
[SourceQuality "1"]
[TimeControl "5400+30"]

{[%evp 9,66,16,19,0,0,-5,-2,-7,-6,0,0,0,0,-19,37,6,10,-39,-28,-50,-53,-143,-55,-70,-78,-63,-66,-68,-27,-141,-139,-205,-205,-243,-266,-373,-391,-498,-492,-483,-468,-673,-564,-562,-561,-549,-539,-533,-514,-551,-563,-559,-552,-522,-531,-659,-606,-29997,-29998]} 1. d4 {[%emt 0:00:30]} Nf6 {[%emt 0:05:02]} 2. Nf3 {[%emt 0:00:12]} e6 {[%emt 0:00:48]} 3. c4 {[%emt 0:00:38]} Bb4+ {[%emt 0:00:28]} 4. Bd2 {[%emt 0:00:40]} a5 {[%emt 0:05:33]} 5. g3 {[%emt 0:02:25]} d5 {[%emt 0:02:44]} 6. Bxb4 {[%emt 0:10:37] E11: Bogo-Indian.} axb4 {[%emt 0:00:16]} 7. Nbd2 {[%emt 0:00:30]} O-O {[%emt 0:13:50]} 8. Bg2 {[%emt 0:01:28] The position is equal.} Qe7 {[%emt 0:03:25]} 9. O-O {[%emt 0:02:38]} b6 {[%emt 0:07:10]} 10. Qc2 {[%emt 0:05:40]} Bb7 {[%emt 0:10:40]} 11. Rfc1 {[%emt 0:14:59] [#]} Na6 $146 {[%emt 0:05:30]} (11... Rc8 $11) ({Predecessor:} 11... Rc8 12. Ne5 c5 13. cxd5 exd5 14. Qf5 Nc6 15. Nxc6 Bxc6 16. e3 h6 {½-½ (16) Hodgson,J-Wells,P (2365) Edinburgh 1985}) 12. e3 {[%emt 0:25:01]} c5 {[%emt 0:02:37]} 13. b3 {[%emt 0:02:23]} (13. a4 $11) 13... Rfd8 $15 {[%emt 0:05:58]} 14. dxc5 {[%emt 0:05:43]} Nxc5 {[%emt 0:16:38][%cal Ba6c5,Bc5e4,Be4c3][%mdl 32]} 15. Nd4 {[%emt 0:10:21]} (15. Ne1 $15) 15... dxc4 {[%emt 0:10:10]} (15... e5 $1 $17 {[%cal Re5d4]} 16. Nb5 dxc4 17. bxc4 Bxg2 18. Kxg2 Nd3) 16. Nxc4 {[%emt 0:05:55]} Bxg2 {[%emt 0:00:04]} 17. Kxg2 {[%emt 0:00:13]} Qb7+ {[%emt 0:00:19]} 18. Kg1 {[%emt 0:00:30][%cal Oc4b6]} Nce4 {[%emt 0:04:30] aiming for ...Ng5.} 19. h4 {[%emt 0:05:03] [#] Against Ng5. White is now going downhill.} (19. Ne5 $11 {remains equal.}) 19... Rac8 $1 $17 {[%emt 0:00:53][%cal Oe6e5] &Nero is more active.} 20. Qe2 {[%emt 0:00:46]} (20. f3 $17 {was necessary.} Nc3 21. Qg2) 20... Nc3 $19 {[%emt 0:00:23]} 21. Qf1 {[%emt 0:00:31] [#]} b5 $1 {[%emt 0:01:00]} 22. Na5 {[%emt 0:04:04]} (22. Nd2 $142) 22... Qb6 {[%emt 0:01:38]} 23. Nac6 {[%emt 0:00:24]} Rxc6 {[%emt 0:00:10]} 24. Nxc6 {[%emt 0:00:23]} Qxc6 {[%emt 0:00:05]} 25. a3 {[%emt 0:00:50]} (25. Rc2 $142 Qd5 26. Rac1) 25... Qf3 {[%emt 0:01:32] And now ...Ne2+ would win.} 26. Rc2 {[%emt 0:00:22] Prevents Ne2+.} Nfe4 {[%emt 0:01:23] White must now prevent ...bxa3.} 27. axb4 {[%emt 0:00:17]} g5 {[%emt 0:00:40]} 28. hxg5 {[%emt 0:00:38] [#]} Nd2 $1 {[%emt 0:00:31]} 29. Qg2 {[%emt 0:00:41]} (29. Qe1 Qd5) 29... Ne2+ {[%emt 0:00:31] Pair of Knights!} 30. Kh1 {[%emt 0:00:37] Strongly threatening Qxf3.} Qh5+ {[%emt 0:00:25]} 31. Qh2 {[%emt 0:00:03]} Qxg5 {[%emt 0:00:25] Threatens to win with ...Qf6.} 32. Qg2 {[%emt 0:00:50]} Rd5 {[%emt 0:00:37] ( -> ...Qh5+)} 33. Rd1 {[%emt 0:00:32]} Qh5+ {[%emt 0:00:11] Weighted Error Value: White=0.79/Black=0.16 (very precise)} 0-1